[Event "Late-Titled-Tuesday-Blitz-May-14-2024"]
[Site "Chess.com"]
[Date "2024.05.14"]
[Round "1"]
[White "PabloZarnicki"]
[Black "Grischuk"]
[Result "1/2-1/2"]
[WhiteElo "2555"]
[BlackElo "3133"]
[TimeControl "180+1"]
[EndTime "14:08:00 PDT"]
[Termination "Game drawn by repetition"]

1. e4 {[%clk 0:02:59.9]} 1... e5 {[%clk 0:03:00.4]} 2. Nf3 {[%clk 0:03:00]} 2...
Nc6 {[%clk 0:02:58.8]} 3. Nc3 {[%clk 0:03:00]} 3... Nf6 {[%clk 0:02:58.3]} 4. d4
{[%clk 0:03:00.3]} 4... exd4 {[%clk 0:02:59.2]} 5. Nxd4 {[%clk 0:03:00.9]} 5...
Bb4 {[%clk 0:02:59.8]} 6. Nxc6 {[%clk 0:03:01]} 6... bxc6 {[%clk 0:03:00.7]} 7.
Bd3 {[%clk 0:03:01.3]} 7... d5 {[%clk 0:03:01.4]} 8. exd5 {[%clk 0:03:02.2]}
8... O-O {[%clk 0:03:01.7]} 9. O-O {[%clk 0:03:02.1]} 9... cxd5 {[%clk
0:03:02.1]} 10. Bg5 {[%clk 0:03:01.7]} 10... Be6 {[%clk 0:03:02.1]} 11. Nb5
{[%clk 0:03:01.3]} 11... c5 {[%clk 0:03:01.6]} 12. a3 {[%clk 0:02:59.5]} 12...
Ba5 {[%clk 0:03:01.8]} 13. b4 {[%clk 0:02:59.8]} 13... Bb6 {[%clk 0:03:02.1]}
14. bxc5 {[%clk 0:02:57.8]} 14... Bxc5 {[%clk 0:03:03]} 15. Qf3 {[%clk
0:02:54.7]} 15... Rc8 {[%clk 0:02:32.5]} 16. c3 {[%clk 0:02:36.5]} 16... h6
{[%clk 0:02:00.5]} 17. Bxf6 {[%clk 0:02:35.6]} 17... Qxf6 {[%clk 0:02:01.4]} 18.
Qxf6 {[%clk 0:02:34.9]} 18... gxf6 {[%clk 0:02:02.3]} 19. a4 {[%clk 0:02:17.9]}
19... Rc6 {[%clk 0:01:31]} 20. a5 {[%clk 0:01:50.8]} 20... Kg7 {[%clk
0:01:16.3]} 21. Nd4 {[%clk 0:01:41.3]} 21... Bxd4 {[%clk 0:01:15.6]} 22. cxd4
{[%clk 0:01:42.2]} 22... Rc3 {[%clk 0:01:16.1]} 23. Be2 {[%clk 0:01:32]} 23...
Rb8 {[%clk 0:01:04.5]} 24. Rfc1 {[%clk 0:01:13.7]} 24... Rxc1+ {[%clk
0:00:50.9]} 25. Rxc1 {[%clk 0:01:14.6]} 25... Rb4 {[%clk 0:00:50.3]} 26. f3
{[%clk 0:00:16.4]} 26... Rxd4 {[%clk 0:00:50.3]} 27. Rc7 {[%clk 0:00:16.2]}
27... Rd2 {[%clk 0:00:45.4]} 28. Kf2 {[%clk 0:00:14.4]} 28... d4 {[%clk
0:00:45.2]} 29. Ke1 {[%clk 0:00:14.7]} 29... Ra2 {[%clk 0:00:43.6]} 30. Rxa7
{[%clk 0:00:14.9]} 30... f5 {[%clk 0:00:34.1]} 31. a6 {[%clk 0:00:14.5]} 31...
Kf6 {[%clk 0:00:34.5]} 32. Ra8 {[%clk 0:00:14.5]} 32... f4 {[%clk 0:00:25.5]}
33. g3 {[%clk 0:00:12.3]} 33... fxg3 {[%clk 0:00:18.1]} 34. hxg3 {[%clk
0:00:13.2]} 34... Ra3 {[%clk 0:00:12.1]} 35. Rd8 {[%clk 0:00:09.6]} 35... Ra4
{[%clk 0:00:05.2]} 36. Bb5 {[%clk 0:00:08.4]} 36... Ra5 {[%clk 0:00:05]} 37. Bd3
{[%clk 0:00:07.5]} 37... Ra4 {[%clk 0:00:04.1]} 38. f4 {[%clk 0:00:06]} 38...
Ke7 {[%clk 0:00:03.3]} 39. Rb8 {[%clk 0:00:05.9]} 39... Ra3 {[%clk 0:00:03]} 40.
Rb7+ {[%clk 0:00:06.2]} 40... Kd6 {[%clk 0:00:02.8]} 41. Kd2 {[%clk 0:00:06.5]}
41... Bd5 {[%clk 0:00:02.4]} 42. Rb6+ {[%clk 0:00:06.8]} 42... Kc5 {[%clk
0:00:01.5]} 43. Rb5+ {[%clk 0:00:06.7]} 43... Kd6 {[%clk 0:00:02]} 44. Rb6+
{[%clk 0:00:07]} 44... Kc5 {[%clk 0:00:02.6]} 45. Rb5+ {[%clk 0:00:07.1]} 45...
Kd6 {[%clk 0:00:03.1]} 46. Rb2 {[%clk 0:00:07.4]} 46... f6 {[%clk 0:00:02.4]}
47. Rb6+ {[%clk 0:00:07.5]} 47... Kc5 {[%clk 0:00:02.8]} 48. Rb2 {[%clk
0:00:07.4]} 48... Kc6 {[%clk 0:00:02.5]} 49. Rc2+ {[%clk 0:00:07.6]} 49... Kd6
{[%clk 0:00:02.6]} 50. Rb2 {[%clk 0:00:08.1]} 50... Kc5 {[%clk 0:00:02.5]} 51.
Rb5+ {[%clk 0:00:08.1]} 51... Kc6 {[%clk 0:00:02.7]} 52. Rb2 {[%clk 0:00:07.8]}
52... Kc5 {[%clk 0:00:02.7]} 53. Rc2+ {[%clk 0:00:08.2]} 53... Kd6 {[%clk
0:00:02.9]} 54. Rb2 {[%clk 0:00:08.6]} 54... Kc5 {[%clk 0:00:02.9]} 1/2-1/2

[Event "Late-Titled-Tuesday-Blitz-May-14-2024"]
[Site "Chess.com"]
[Date "2024.05.14"]
[Round "1"]
[White "KChor05"]
[Black "ferrufino64"]
[Result "1-0"]
[WhiteElo "2618"]
[BlackElo "2298"]
[TimeControl "180+1"]
[EndTime "14:08:05 PDT"]
[Termination "KChor05 won by resignation"]

1. e4 {[%clk 0:02:58.9]} 1... c5 {[%clk 0:02:55.5]} 2. Nf3 {[%clk 0:02:57.2]}
2... d6 {[%clk 0:02:53.4]} 3. d4 {[%clk 0:02:42.7]} 3... cxd4 {[%clk 0:02:54.3]}
4. Nxd4 {[%clk 0:02:43.2]} 4... Nf6 {[%clk 0:02:51.8]} 5. Nc3 {[%clk 0:02:38.8]}
5... g6 {[%clk 0:02:51.3]} 6. Be3 {[%clk 0:02:37.7]} 6... Bg7 {[%clk 0:02:51.5]}
7. f3 {[%clk 0:02:37]} 7... Nc6 {[%clk 0:02:52.2]} 8. Qd2 {[%clk 0:02:30.7]}
8... O-O {[%clk 0:02:49.5]} 9. Bc4 {[%clk 0:02:28.5]} 9... Nxd4 {[%clk
0:02:48.6]} 10. Bxd4 {[%clk 0:02:27.6]} 10... Be6 {[%clk 0:02:48]} 11. Bxe6
{[%clk 0:02:20.7]} 11... fxe6 {[%clk 0:02:48.9]} 12. O-O-O {[%clk 0:02:20.8]}
12... Qa5 {[%clk 0:02:48.2]} 13. Kb1 {[%clk 0:02:20.6]} 13... Rac8 {[%clk
0:02:43.9]} 14. h4 {[%clk 0:02:19]} 14... Nh5 {[%clk 0:02:43.3]} 15. Bxg7 {[%clk
0:02:06.1]} 15... Kxg7 {[%clk 0:02:44.2]} 16. g4 {[%clk 0:02:02.8]} 16... Ng3
{[%clk 0:02:44.3]} 17. Rhg1 {[%clk 0:01:12.5]} 17... Rxf3 {[%clk 0:02:37]} 18.
h5 {[%clk 0:01:09]} 18... Qe5 {[%clk 0:01:35.1]} 19. hxg6 {[%clk 0:01:03.1]}
19... hxg6 {[%clk 0:01:36]} 20. Rde1 {[%clk 0:00:43.2]} 20... a6 {[%clk
0:01:25.1]} 21. Nd1 {[%clk 0:00:31.9]} 21... b5 {[%clk 0:00:48.1]} 22. Nf2
{[%clk 0:00:29.4]} 22... Rcf8 {[%clk 0:00:41.7]} 23. Nd3 {[%clk 0:00:27.5]}
23... Qd4 {[%clk 0:00:42.1]} 24. Qa5 {[%clk 0:00:22.9]} 24... Nxe4 {[%clk
0:00:21]} 25. Qxa6 {[%clk 0:00:21.6]} 25... Nd2+ {[%clk 0:00:19.3]} 26. Kc1
{[%clk 0:00:14.7]} 26... Nc4 {[%clk 0:00:15.1]} 27. Qxb5 {[%clk 0:00:13]} 27...
Rxd3 {[%clk 0:00:14.7]} 28. cxd3 {[%clk 0:00:12.1]} 28... Qxd3 {[%clk
0:00:14.9]} 29. Rd1 {[%clk 0:00:08.9]} 29... Qe3+ {[%clk 0:00:14.7]} 30. Kb1
{[%clk 0:00:09]} 30... Nd2+ {[%clk 0:00:10]} 31. Ka1 {[%clk 0:00:09]} 31... Nf3
{[%clk 0:00:07.5]} 32. Rgf1 {[%clk 0:00:07.5]} 32... Nd4 {[%clk 0:00:07.4]} 33.
Qc4 {[%clk 0:00:02.6]} 33... Rxf1 {[%clk 0:00:06.4]} 34. Rxf1 {[%clk 0:00:03.5]}
34... Qe4 {[%clk 0:00:05]} 35. b3 {[%clk 0:00:02]} 35... e5 {[%clk 0:00:05.1]}
36. Kb2 {[%clk 0:00:02.4]} 36... Qxg4 {[%clk 0:00:05.3]} 37. Rc1 {[%clk
0:00:02.9]} 37... Qg2+ {[%clk 0:00:05.5]} 38. Ka3 {[%clk 0:00:03.3]} 38... Qa8+
{[%clk 0:00:05.3]} 39. Kb2 {[%clk 0:00:03.5]} 39... Qg2+ {[%clk 0:00:05.4]} 40.
Ka1 {[%clk 0:00:03.3]} 40... Qe4 {[%clk 0:00:04.6]} 41. a4 {[%clk 0:00:03.2]}
41... Qa8 {[%clk 0:00:02.8]} 42. Kb2 {[%clk 0:00:03.8]} 42... Qe8 {[%clk
0:00:03]} 43. Ka3 {[%clk 0:00:04.2]} 43... Qf8 {[%clk 0:00:03.5]} 44. a5 {[%clk
0:00:04.5]} 44... Qa8 {[%clk 0:00:02.9]} 45. a6 {[%clk 0:00:04.5]} 45... Qb8
{[%clk 0:00:03.4]} 46. b4 {[%clk 0:00:04.9]} 46... Nb5+ {[%clk 0:00:03.7]} 47.
Ka4 {[%clk 0:00:05.3]} 47... Nd4 {[%clk 0:00:04.2]} 48. b5 {[%clk 0:00:05.8]}
48... Qe8 {[%clk 0:00:04.6]} 49. Ka5 {[%clk 0:00:05.8]} 49... Qf8 {[%clk
0:00:05]} 50. a7 {[%clk 0:00:05.1]} 50... Qd8+ {[%clk 0:00:05.6]} 51. b6 {[%clk
0:00:05.5]} 51... Qa8 {[%clk 0:00:05.5]} 52. Ka6 {[%clk 0:00:05.5]} 52... Qe8
{[%clk 0:00:04.6]} 53. b7 {[%clk 0:00:05.5]} 53... d5 {[%clk 0:00:01.4]} 54.
b8=Q {[%clk 0:00:03.3]} 54... Qa4+ {[%clk 0:00:02.3]} 55. Qxa4 {[%clk
0:00:02.7]} 1-0

[Event "Late-Titled-Tuesday-Blitz-May-14-2024"]
[Site "Chess.com"]
[Date "2024.05.14"]
[Round "1"]
[White "PlotnikovPavel"]
[Black "lamomiajunior"]
[Result "0-1"]
[WhiteElo "2433"]
[BlackElo "2772"]
[TimeControl "180+1"]
[EndTime "14:08:06 PDT"]
[Termination "lamomiajunior won on time"]

1. e4 {[%clk 0:03:00.9]} 1... c5 {[%clk 0:03:00.1]} 2. c3 {[%clk 0:03:00.2]}
2... Nf6 {[%clk 0:02:57.7]} 3. e5 {[%clk 0:03:00.1]} 3... Nd5 {[%clk 0:02:57.9]}
4. d4 {[%clk 0:03:00.7]} 4... cxd4 {[%clk 0:02:56]} 5. Qxd4 {[%clk 0:03:01.6]}
5... e6 {[%clk 0:02:55.3]} 6. Bd3 {[%clk 0:03:02]} 6... Nc6 {[%clk 0:02:55.1]}
7. Qe4 {[%clk 0:03:02.1]} 7... f5 {[%clk 0:02:52.1]} 8. Qe2 {[%clk 0:03:02.5]}
8... g6 {[%clk 0:02:42]} 9. Nf3 {[%clk 0:03:01.5]} 9... Bg7 {[%clk 0:02:39.2]}
10. O-O {[%clk 0:02:59.1]} 10... O-O {[%clk 0:02:38.2]} 11. Re1 {[%clk
0:02:58.3]} 11... b6 {[%clk 0:02:36]} 12. Bc4 {[%clk 0:02:48.9]} 12... Nde7
{[%clk 0:02:25.5]} 13. a4 {[%clk 0:02:32.4]} 13... Bb7 {[%clk 0:02:24.5]} 14.
Na3 {[%clk 0:02:31]} 14... a6 {[%clk 0:02:23.7]} 15. Bf4 {[%clk 0:02:26.5]}
15... h6 {[%clk 0:02:23.7]} 16. h4 {[%clk 0:02:25.8]} 16... Na5 {[%clk
0:02:21.4]} 17. Ba2 {[%clk 0:02:22.3]} 17... Bd5 {[%clk 0:02:14.3]} 18. b4
{[%clk 0:02:19]} 18... Bxa2 {[%clk 0:02:11]} 19. Rxa2 {[%clk 0:02:12.8]} 19...
Nac6 {[%clk 0:02:11.4]} 20. Rd2 {[%clk 0:02:06.1]} 20... Nd5 {[%clk 0:02:11.3]}
21. Rxd5 {[%clk 0:01:50.7]} 21... exd5 {[%clk 0:02:11.1]} 22. Rd1 {[%clk
0:01:51.3]} 22... Qe7 {[%clk 0:02:07]} 23. Rxd5 {[%clk 0:01:49.2]} 23... Rae8
{[%clk 0:02:06.1]} 24. Qxa6 {[%clk 0:01:33.1]} 24... Ra8 {[%clk 0:02:00.5]} 25.
Qb5 {[%clk 0:01:21.5]} 25... Rfc8 {[%clk 0:02:00.3]} 26. Qd3 {[%clk 0:00:58.1]}
26... Rxa4 {[%clk 0:01:54.6]} 27. Rxd7 {[%clk 0:00:54.7]} 27... Rd8 {[%clk
0:01:53.1]} 28. Rxd8+ {[%clk 0:00:49.1]} 28... Qxd8 {[%clk 0:01:50.8]} 29. Qc4+
{[%clk 0:00:49]} 29... Kh7 {[%clk 0:01:47.9]} 30. Qxc6 {[%clk 0:00:42.6]} 30...
Rxa3 {[%clk 0:01:46.1]} 31. Be3 {[%clk 0:00:37.9]} 31... Ra1+ {[%clk 0:01:38.1]}
32. Kh2 {[%clk 0:00:37.6]} 32... Bxe5+ {[%clk 0:01:35.9]} 33. g3 {[%clk
0:00:31.8]} 33... Bg7 {[%clk 0:01:34.9]} 34. Bxb6 {[%clk 0:00:23.6]} 34... Qd1
{[%clk 0:01:33.8]} 35. Nd4 {[%clk 0:00:22.5]} 35... Qg1+ {[%clk 0:01:29.7]} 36.
Kh3 {[%clk 0:00:23.1]} 36... Qxf2 {[%clk 0:01:26.9]} 37. Qg2 {[%clk 0:00:21.9]}
37... Qxg2+ {[%clk 0:00:57.1]} 38. Kxg2 {[%clk 0:00:22.8]} 38... Ra3 {[%clk
0:00:55.8]} 39. Nb5 {[%clk 0:00:18.2]} 39... Ra2+ {[%clk 0:00:53.5]} 40. Kf3
{[%clk 0:00:18]} 40... Rc2 {[%clk 0:00:54]} 41. Bd4 {[%clk 0:00:16.1]} 41...
Bxd4 {[%clk 0:00:52.8]} 42. cxd4 {[%clk 0:00:14.9]} 42... Rc4 {[%clk 0:00:53.1]}
43. Ke3 {[%clk 0:00:13]} 43... Rxb4 {[%clk 0:00:53]} 44. Nd6 {[%clk 0:00:12.9]}
44... Kg7 {[%clk 0:00:52.7]} 45. h5 {[%clk 0:00:11.1]} 45... gxh5 {[%clk
0:00:40.9]} 46. Nxf5+ {[%clk 0:00:10.7]} 46... Kg6 {[%clk 0:00:41.5]} 47. Ne7+
{[%clk 0:00:09.8]} 47... Kg5 {[%clk 0:00:41.7]} 48. d5 {[%clk 0:00:09.2]} 48...
Rb3+ {[%clk 0:00:38.3]} 49. Ke4 {[%clk 0:00:08.9]} 49... Rb6 {[%clk 0:00:23.9]}
50. Ke5 {[%clk 0:00:08]} 50... Kg4 {[%clk 0:00:23.9]} 51. Nf5 {[%clk 0:00:08.3]}
51... Rb1 {[%clk 0:00:19.4]} 52. d6 {[%clk 0:00:07.8]} 52... Re1+ {[%clk
0:00:20]} 53. Kf6 {[%clk 0:00:07.5]} 53... Rf1 {[%clk 0:00:15.8]} 54. d7 {[%clk
0:00:07.1]} 54... Rxf5+ {[%clk 0:00:16.4]} 55. Ke6 {[%clk 0:00:06.8]} 55... Rf8
{[%clk 0:00:16.8]} 56. Ke7 {[%clk 0:00:03.3]} 56... Rg8 {[%clk 0:00:17.3]} 57.
Kf7 {[%clk 0:00:02.8]} 57... Rd8 {[%clk 0:00:17.4]} 0-1

[Event "Late-Titled-Tuesday-Blitz-May-14-2024"]
[Site "Chess.com"]
[Date "2024.05.14"]
[Round "1"]
[White "Tolyanius"]
[Black "WCM-Mexicana"]
[Result "1-0"]
[WhiteElo "2672"]
[BlackElo "2350"]
[TimeControl "180+1"]
[EndTime "14:08:08 PDT"]
[Termination "Tolyanius won by resignation"]

1. e4 {[%clk 0:03:00.9]} 1... c5 {[%clk 0:02:57.1]} 2. Nf3 {[%clk 0:03:01.4]}
2... Nc6 {[%clk 0:02:54.6]} 3. Bb5 {[%clk 0:03:01.2]} 3... e6 {[%clk 0:02:51.7]}
4. O-O {[%clk 0:03:01.5]} 4... Nge7 {[%clk 0:02:47.9]} 5. Re1 {[%clk 0:03:02.1]}
5... a6 {[%clk 0:02:48.1]} 6. Bf1 {[%clk 0:03:02.8]} 6... d5 {[%clk 0:02:47.8]}
7. exd5 {[%clk 0:03:02.7]} 7... Nxd5 {[%clk 0:02:47.4]} 8. d4 {[%clk 0:03:03.2]}
8... cxd4 {[%clk 0:02:47.2]} 9. Nxd4 {[%clk 0:03:04.1]} 9... Nxd4 {[%clk
0:02:47.3]} 10. Qxd4 {[%clk 0:03:04.8]} 10... Nf6 {[%clk 0:02:39.4]} 11. Qf4
{[%clk 0:02:59.8]} 11... Bd6 {[%clk 0:02:37.7]} 12. Qh4 {[%clk 0:02:57.8]} 12...
O-O {[%clk 0:02:37.3]} 13. Nc3 {[%clk 0:02:58.5]} 13... b5 {[%clk 0:02:36.6]}
14. Bd3 {[%clk 0:02:54.1]} 14... g6 {[%clk 0:02:18.9]} 15. Bg5 {[%clk
0:02:42.8]} 15... Be7 {[%clk 0:02:18.9]} 16. a4 {[%clk 0:02:42.5]} 16... b4
{[%clk 0:02:17.6]} 17. Bxf6 {[%clk 0:02:38.2]} 17... Bxf6 {[%clk 0:02:11.3]} 18.
Qxb4 {[%clk 0:02:38.8]} 18... Qc7 {[%clk 0:02:08.1]} 19. Ne4 {[%clk 0:02:39]}
19... Bg7 {[%clk 0:02:07]} 20. Rab1 {[%clk 0:02:33.4]} 20... Rb8 {[%clk
0:02:06.9]} 21. Qa3 {[%clk 0:02:33.4]} 21... Bb7 {[%clk 0:02:04.4]} 22. Nc5
{[%clk 0:02:32.3]} 22... Rfd8 {[%clk 0:01:40.6]} 23. Nxb7 {[%clk 0:02:17.8]}
23... Qxb7 {[%clk 0:01:41.5]} 24. b4 {[%clk 0:02:09.7]} 24... Bf8 {[%clk
0:01:37.4]} 25. Re4 {[%clk 0:01:43.2]} 25... a5 {[%clk 0:01:34.8]} 26. Qa2
{[%clk 0:01:41.5]} 26... axb4 {[%clk 0:01:32.2]} 27. h4 {[%clk 0:01:41.6]} 27...
Qd5 {[%clk 0:01:27.4]} 28. Qb2 {[%clk 0:01:37.3]} 28... b3 {[%clk 0:01:21.2]}
29. Re3 {[%clk 0:01:22.7]} 29... bxc2 {[%clk 0:00:52.2]} 30. Qxc2 {[%clk
0:01:23.6]} 30... Rxb1+ {[%clk 0:00:47.5]} 31. Qxb1 {[%clk 0:01:23.7]} 31... Qd4
{[%clk 0:00:47.3]} 32. h5 {[%clk 0:01:22.4]} 32... Qxa4 {[%clk 0:00:43.6]} 33.
hxg6 {[%clk 0:01:22.2]} 33... hxg6 {[%clk 0:00:42.9]} 34. Rf3 {[%clk 0:00:55.9]}
34... Bg7 {[%clk 0:00:34.5]} 35. g3 {[%clk 0:00:44.9]} 35... Qa1 {[%clk
0:00:33.9]} 36. Qxa1 {[%clk 0:00:44.9]} 36... Bxa1 {[%clk 0:00:34.8]} 37. Kf1
{[%clk 0:00:45.5]} 37... Kg7 {[%clk 0:00:34.9]} 38. Ke2 {[%clk 0:00:46.4]} 38...
Bf6 {[%clk 0:00:35.4]} 39. Rf4 {[%clk 0:00:45.6]} 39... Be5 {[%clk 0:00:35.1]}
40. Ra4 {[%clk 0:00:46.2]} 40... Rd7 {[%clk 0:00:34.4]} 41. Bb5 {[%clk
0:00:45.7]} 41... Rc7 {[%clk 0:00:34.2]} 42. Bd3 {[%clk 0:00:44.2]} 42... Bf6
{[%clk 0:00:28.3]} 43. Ra5 {[%clk 0:00:44.5]} 43... Bd8 {[%clk 0:00:27.1]} 44.
Ra8 {[%clk 0:00:45.1]} 44... Bf6 {[%clk 0:00:26.7]} 45. Rb8 {[%clk 0:00:45.8]}
45... Ra7 {[%clk 0:00:26.3]} 46. Ke3 {[%clk 0:00:38.5]} 46... Be7 {[%clk
0:00:21.9]} 47. Kd4 {[%clk 0:00:37.1]} 47... Bf6+ {[%clk 0:00:17.8]} 48. Ke3
{[%clk 0:00:37.1]} 48... Be7 {[%clk 0:00:18]} 49. Rc8 {[%clk 0:00:37]} 49... Bf6
{[%clk 0:00:15.5]} 50. Be4 {[%clk 0:00:36.4]} 50... Bg5+ {[%clk 0:00:14.3]} 51.
Ke2 {[%clk 0:00:33.4]} 51... Ra2+ {[%clk 0:00:14.1]} 52. Kf3 {[%clk 0:00:34.1]}
52... Bf6 {[%clk 0:00:13.3]} 53. Bc2 {[%clk 0:00:34.6]} 53... Bd4 {[%clk
0:00:13.2]} 54. Ke2 {[%clk 0:00:34.8]} 54... f5 {[%clk 0:00:12.9]} 55. f3 {[%clk
0:00:34.8]} 55... e5 {[%clk 0:00:13.1]} 56. g4 {[%clk 0:00:35.5]} 56... fxg4
{[%clk 0:00:12.9]} 57. fxg4 {[%clk 0:00:36.4]} 57... Ra3 {[%clk 0:00:13.2]} 58.
Rc6 {[%clk 0:00:36.6]} 58... Re3+ {[%clk 0:00:06.9]} 59. Kd2 {[%clk 0:00:36.6]}
59... Rg3 {[%clk 0:00:06.2]} 60. Rxg6+ {[%clk 0:00:37.2]} 60... Kf7 {[%clk
0:00:06.8]} 61. Rg5 {[%clk 0:00:37.7]} 61... Ke6 {[%clk 0:00:06.7]} 62. Rg6+
{[%clk 0:00:37.7]} 62... Kd5 {[%clk 0:00:07.2]} 63. Bf5 {[%clk 0:00:37.6]} 63...
Rg2+ {[%clk 0:00:07.5]} 64. Kd3 {[%clk 0:00:37.1]} 64... e4+ {[%clk 0:00:08.1]}
65. Bxe4+ {[%clk 0:00:37.3]} 65... Ke5 {[%clk 0:00:09]} 66. Bxg2 {[%clk
0:00:37.9]} 1-0

[Event "Late-Titled-Tuesday-Blitz-May-14-2024"]
[Site "Chess.com"]
[Date "2024.05.14"]
[Round "1"]
[White "Roberz12"]
[Black "BillCoe"]
[Result "1-0"]
[WhiteElo "2575"]
[BlackElo "2155"]
[TimeControl "180+1"]
[EndTime "14:08:10 PDT"]
[Termination "Roberz12 won by resignation"]

1. Nf3 {[%clk 0:02:42.8]} 1... c5 {[%clk 0:02:59.6]} 2. e4 {[%clk 0:02:42.3]}
2... d6 {[%clk 0:02:58.2]} 3. Bc4 {[%clk 0:02:40.7]} 3... g6 {[%clk 0:02:56.1]}
4. O-O {[%clk 0:02:40.8]} 4... Nf6 {[%clk 0:02:51.8]} 5. Re1 {[%clk 0:02:26.1]}
5... Bg7 {[%clk 0:02:49.4]} 6. c3 {[%clk 0:02:25.9]} 6... O-O {[%clk 0:02:46.3]}
7. d4 {[%clk 0:02:23.2]} 7... b6 {[%clk 0:02:45]} 8. Bf4 {[%clk 0:02:08.5]} 8...
Ba6 {[%clk 0:02:40.4]} 9. Bxa6 {[%clk 0:02:06.8]} 9... Nxa6 {[%clk 0:02:41.3]}
10. d5 {[%clk 0:02:06.2]} 10... Nb8 {[%clk 0:02:39]} 11. a4 {[%clk 0:02:04.5]}
11... Nbd7 {[%clk 0:02:38.9]} 12. Nbd2 {[%clk 0:02:04.1]} 12... a6 {[%clk
0:02:31.1]} 13. Qe2 {[%clk 0:02:03.7]} 13... Ng4 {[%clk 0:02:27.9]} 14. h3
{[%clk 0:02:00.3]} 14... Nge5 {[%clk 0:02:27.4]} 15. Nxe5 {[%clk 0:01:50.7]}
15... Nxe5 {[%clk 0:02:28.3]} 16. Bg3 {[%clk 0:01:47.7]} 16... Rb8 {[%clk
0:02:22.1]} 17. f4 {[%clk 0:01:40.1]} 17... Nd7 {[%clk 0:02:22.1]} 18. Qxa6
{[%clk 0:01:39.7]} 18... Qc7 {[%clk 0:02:15.3]} 19. Qb5 {[%clk 0:01:37.1]} 19...
Ra8 {[%clk 0:02:09.1]} 20. Nc4 {[%clk 0:01:36.6]} 20... Rfb8 {[%clk 0:02:03.3]}
21. Kh2 {[%clk 0:01:35.8]} 21... Nf6 {[%clk 0:01:51.9]} 22. Rad1 {[%clk
0:01:27.4]} 22... Nh5 {[%clk 0:01:51.4]} 23. e5 {[%clk 0:01:23.9]} 23... Nxg3
{[%clk 0:01:51.2]} 24. Kxg3 {[%clk 0:01:23.4]} 24... h5 {[%clk 0:01:50.4]} 25.
Kf2 {[%clk 0:01:21.7]} 25... Bh6 {[%clk 0:01:48.7]} 26. g3 {[%clk 0:01:15.7]}
26... Bg7 {[%clk 0:01:43.6]} 27. exd6 {[%clk 0:01:15.2]} 27... exd6 {[%clk
0:01:40.4]} 28. Re4 {[%clk 0:01:12.2]} 28... Ra7 {[%clk 0:01:36.6]} 29. Rde1
{[%clk 0:01:10.7]} 29... Bf8 {[%clk 0:01:31.5]} 30. Re8 {[%clk 0:01:09.3]} 30...
Raa8 {[%clk 0:01:30.4]} 31. Rxb8 {[%clk 0:01:01.8]} 31... Rxb8 {[%clk
0:01:31.3]} 32. h4 {[%clk 0:00:54.8]} 32... Qc8 {[%clk 0:01:22.6]} 33. Ne3
{[%clk 0:00:32.1]} 33... Ra8 {[%clk 0:01:16.5]} 34. b3 {[%clk 0:00:30.7]} 34...
Rb8 {[%clk 0:01:10.8]} 35. Qc6 {[%clk 0:00:30.5]} 35... Qh3 {[%clk 0:01:04.9]}
36. Qc7 {[%clk 0:00:26.2]} 36... Re8 {[%clk 0:01:00.4]} 37. Ng2 {[%clk
0:00:21.5]} 37... Rxe1 {[%clk 0:00:49.3]} 38. Nxe1 {[%clk 0:00:22.4]} 38... Qf5
{[%clk 0:00:45.6]} 39. Qxb6 {[%clk 0:00:20.1]} 39... Qxd5 {[%clk 0:00:45.5]} 40.
Nf3 {[%clk 0:00:16.7]} 40... Qd3 {[%clk 0:00:42.7]} 41. Qb5 {[%clk 0:00:14.1]}
41... Qxc3 {[%clk 0:00:38.4]} 42. Qc4 {[%clk 0:00:14.7]} 42... Qb2+ {[%clk
0:00:35.9]} 43. Ke3 {[%clk 0:00:14.8]} 43... Bg7 {[%clk 0:00:33.2]} 44. a5
{[%clk 0:00:14]} 44... Qa1 {[%clk 0:00:31.1]} 45. Kf2 {[%clk 0:00:13.6]} 45...
Qxa5 {[%clk 0:00:29.6]} 46. Qd5 {[%clk 0:00:12.2]} 46... Qb6 {[%clk 0:00:28.1]}
47. Kg2 {[%clk 0:00:11.8]} 47... Bf8 {[%clk 0:00:26.4]} 48. Ng5 {[%clk 0:00:12]}
48... Qc7 {[%clk 0:00:23.6]} 49. f5 {[%clk 0:00:12.5]} 49... Qe7 {[%clk
0:00:21.6]} 50. fxg6 {[%clk 0:00:12.1]} 50... Qe2+ {[%clk 0:00:21.3]} 51. Kg1
{[%clk 0:00:10]} 51... Qe1+ {[%clk 0:00:21.3]} 52. Kg2 {[%clk 0:00:10.7]} 52...
Qe2+ {[%clk 0:00:21.6]} 53. Kh3 {[%clk 0:00:11.3]} 53... Qf1+ {[%clk 0:00:21.6]}
54. Qg2 {[%clk 0:00:08.9]} 54... Qf5+ {[%clk 0:00:21.6]} 55. Kh2 {[%clk
0:00:08.8]} 55... fxg6 {[%clk 0:00:20.9]} 56. Qa2 {[%clk 0:00:07.5]} 56... Kg7
{[%clk 0:00:20.8]} 57. Qb2+ {[%clk 0:00:07.5]} 57... Qf6 {[%clk 0:00:20.3]} 58.
Ne6+ {[%clk 0:00:07.8]} 58... Kf7 {[%clk 0:00:20.3]} 59. Qxf6+ {[%clk
0:00:08.7]} 59... Kxf6 {[%clk 0:00:20.2]} 60. Nxf8 {[%clk 0:00:09.6]} 60... d5
{[%clk 0:00:19.3]} 61. Nd7+ {[%clk 0:00:09.9]} 61... Ke6 {[%clk 0:00:17.8]} 62.
Nxc5+ {[%clk 0:00:10.8]} 62... Kd6 {[%clk 0:00:17.8]} 63. Nd3 {[%clk 0:00:11.1]}
63... d4 {[%clk 0:00:16.5]} 64. Kg2 {[%clk 0:00:12]} 64... Kd5 {[%clk
0:00:16.5]} 65. Kf3 {[%clk 0:00:12.9]} 1-0